[Event "Late-Titled-Tuesday-Blitz-March-12-2024"]
[Site "Chess.com"]
[Date "2024.03.12"]
[Round "2"]
[White "KetiTsatsalashvili"]
[Black "Andrei_Skvortsov"]
[Result "0-1"]
[WhiteElo "2440"]
[BlackElo "2744"]
[TimeControl "180+1"]
[EndTime "14:16:23 PDT"]
[Termination "Andrei_Skvortsov won by checkmate"]

1. d4 {[%clk 0:03:00.9]} 1... Nf6 {[%clk 0:02:59.6]} 2. Nf3 {[%clk 0:02:57.5]}
2... g6 {[%clk 0:02:59.8]} 3. c4 {[%clk 0:02:56.5]} 3... Bg7 {[%clk 0:03:00.4]}
4. Nc3 {[%clk 0:02:56]} 4... O-O {[%clk 0:03:01.1]} 5. e4 {[%clk 0:02:56]} 5...
d6 {[%clk 0:03:01.8]} 6. Be2 {[%clk 0:02:54.9]} 6... c5 {[%clk 0:03:00.6]} 7. d5
{[%clk 0:02:53.7]} 7... Na6 {[%clk 0:03:00.5]} 8. O-O {[%clk 0:02:51.9]} 8...
Bg4 {[%clk 0:02:58.8]} 9. e5 {[%clk 0:02:07.4]} 9... Bxf3 {[%clk 0:02:55.8]} 10.
Bxf3 {[%clk 0:01:50.6]} 10... dxe5 {[%clk 0:02:55.3]} 11. d6 {[%clk 0:01:49.4]}
11... Rb8 {[%clk 0:02:52.2]} 12. dxe7 {[%clk 0:01:34.4]} 12... Qxe7 {[%clk
0:02:50.9]} 13. Bg5 {[%clk 0:01:34.4]} 13... Qe6 {[%clk 0:02:48.2]} 14. Nd5
{[%clk 0:01:18.5]} 14... Nxd5 {[%clk 0:02:46.2]} 15. Bxd5 {[%clk 0:01:09.7]}
15... Qf5 {[%clk 0:02:45.2]} 16. Qd2 {[%clk 0:00:39.7]} 16... Nc7 {[%clk
0:02:42.4]} 17. Be7 {[%clk 0:00:37.4]} 17... Rfc8 {[%clk 0:02:39.9]} 18. Bf3
{[%clk 0:00:18.9]} 18... Bf8 {[%clk 0:02:33.8]} 19. Bxf8 {[%clk 0:00:14.5]}
19... Rxf8 {[%clk 0:02:33.9]} 20. Qe2 {[%clk 0:00:14.8]} 20... Ne6 {[%clk
0:02:30.9]} 21. Bg4 {[%clk 0:00:12.9]} 21... Nd4 {[%clk 0:02:31.4]} 22. Qd1
{[%clk 0:00:10.6]} 22... Qg5 {[%clk 0:02:26.2]} 23. Bf3 {[%clk 0:00:10]} 23...
Rfd8 {[%clk 0:02:21.9]} 24. Bd5 {[%clk 0:00:10.1]} 24... Kg7 {[%clk 0:02:22.4]}
25. Kh1 {[%clk 0:00:09.8]} 25... b5 {[%clk 0:02:21.2]} 26. b3 {[%clk 0:00:09]}
26... bxc4 {[%clk 0:02:21.1]} 27. bxc4 {[%clk 0:00:09.9]} 27... Rb2 {[%clk
0:02:20.1]} 28. Qa4 {[%clk 0:00:09.9]} 28... Qf6 {[%clk 0:02:14.6]} 29. Qxa7
{[%clk 0:00:08.9]} 29... Rxf2 {[%clk 0:02:11.6]} 30. Rxf2 {[%clk 0:00:09.4]}
30... Qxf2 {[%clk 0:02:11.3]} 31. Qe7 {[%clk 0:00:08.4]} 31... Qf6 {[%clk
0:02:08.7]} 32. Qxf6+ {[%clk 0:00:08.7]} 32... Kxf6 {[%clk 0:02:08.4]} 33. Rf1+
{[%clk 0:00:09.6]} 33... Kg5 {[%clk 0:02:07.7]} 34. Rxf7 {[%clk 0:00:09.2]}
34... Rb8 {[%clk 0:02:07.8]} 35. h3 {[%clk 0:00:07.4]} 35... h5 {[%clk
0:02:05.8]} 36. Kh2 {[%clk 0:00:07.1]} 36... Rb2 {[%clk 0:02:03]} 37. a4 {[%clk
0:00:06.8]} 37... Ra2 {[%clk 0:02:02.3]} 38. Ra7 {[%clk 0:00:06.9]} 38... Kf4
{[%clk 0:01:55.3]} 39. a5 {[%clk 0:00:07]} 39... h4 {[%clk 0:01:54.2]} 40. a6
{[%clk 0:00:06.9]} 40... Nf5 {[%clk 0:01:54.7]} 41. Ra8 {[%clk 0:00:05.8]} 41...
Ng3 {[%clk 0:01:50.8]} 42. Rf8+ {[%clk 0:00:02.8]} 42... Kg5 {[%clk 0:01:49.8]}
43. Rf3 {[%clk 0:00:02.1]} 43... Ra1 {[%clk 0:01:47.3]} 44. Rxg3+ {[%clk
0:00:02.3]} 44... hxg3+ {[%clk 0:01:48.2]} 45. Kxg3 {[%clk 0:00:03.2]} 45...
Ra3+ {[%clk 0:01:47.4]} 46. Kf2 {[%clk 0:00:01.7]} 46... Rxa6 {[%clk 0:01:48.3]}
47. Ke3 {[%clk 0:00:02.2]} 47... Kf6 {[%clk 0:01:47]} 48. Kf2 {[%clk 0:00:03.1]}
48... Kf5 {[%clk 0:01:46.2]} 49. Kg3 {[%clk 0:00:04]} 49... Ra3+ {[%clk
0:01:46]} 50. Kh2 {[%clk 0:00:04.5]} 50... Kf4 {[%clk 0:01:46.3]} 51. Be6 {[%clk
0:00:04.2]} 51... e4 {[%clk 0:01:45.7]} 52. Kg1 {[%clk 0:00:03.8]} 52... Ke3
{[%clk 0:01:45.7]} 53. Kf1 {[%clk 0:00:04.4]} 53... Ra1# {[%clk 0:01:45.7]} 0-1

[Event "Late-Titled-Tuesday-Blitz-March-12-2024"]
[Site "Chess.com"]
[Date "2024.03.12"]
[Round "2"]
[White "willcab71"]
[Black "flubs"]
[Result "0-1"]
[WhiteElo "2140"]
[BlackElo "2483"]
[TimeControl "180+1"]
[EndTime "14:16:24 PDT"]
[Termination "flubs won on time"]

1. d4 {[%clk 0:03:00.9]} 1... d5 {[%clk 0:02:59.3]} 2. Nf3 {[%clk 0:03:01]} 2...
Nc6 {[%clk 0:02:59]} 3. e3 {[%clk 0:03:00.2]} 3... Nf6 {[%clk 0:02:58.6]} 4.
Nbd2 {[%clk 0:03:00.1]} 4... Bg4 {[%clk 0:02:58.2]} 5. Be2 {[%clk 0:02:59.7]}
5... e6 {[%clk 0:02:58.3]} 6. b3 {[%clk 0:03:00]} 6... Bb4 {[%clk 0:02:52.4]} 7.
Bb2 {[%clk 0:02:58.5]} 7... Ne4 {[%clk 0:02:48.6]} 8. O-O {[%clk 0:02:57.7]}
8... Nc3 {[%clk 0:02:44.6]} 9. Qe1 {[%clk 0:02:51.6]} 9... Nxe2+ {[%clk
0:02:33.9]} 10. Qxe2 {[%clk 0:02:52.5]} 10... O-O {[%clk 0:02:33.3]} 11. c3
{[%clk 0:02:51.6]} 11... Bd6 {[%clk 0:02:29]} 12. h3 {[%clk 0:02:51.5]} 12...
Bh5 {[%clk 0:02:28.5]} 13. Rac1 {[%clk 0:02:48.1]} 13... Re8 {[%clk 0:02:23]}
14. c4 {[%clk 0:02:47]} 14... a6 {[%clk 0:02:15.6]} 15. g4 {[%clk 0:02:10.6]}
15... Bg6 {[%clk 0:02:15.4]} 16. Ne5 {[%clk 0:02:06.3]} 16... Bxe5 {[%clk
0:01:59.9]} 17. dxe5 {[%clk 0:02:05.4]} 17... Nb4 {[%clk 0:01:59.7]} 18. Qf3
{[%clk 0:01:51.8]} 18... Nxa2 {[%clk 0:01:50.8]} 19. Ra1 {[%clk 0:01:44.2]}
19... Nb4 {[%clk 0:01:49.3]} 20. Bd4 {[%clk 0:01:37.3]} 20... Nc2 {[%clk
0:01:42.5]} 21. Rac1 {[%clk 0:01:34]} 21... Nxd4 {[%clk 0:01:41.9]} 22. exd4
{[%clk 0:01:34.9]} 22... c6 {[%clk 0:01:41.6]} 23. Qg3 {[%clk 0:01:33.5]} 23...
dxc4 {[%clk 0:01:37]} 24. Rxc4 {[%clk 0:01:31.4]} 24... Qd5 {[%clk 0:01:25.8]}
25. Qc3 {[%clk 0:01:07.6]} 25... Red8 {[%clk 0:01:22.3]} 26. f4 {[%clk
0:01:02.3]} 26... Rac8 {[%clk 0:01:16.9]} 27. Nf3 {[%clk 0:00:39.7]} 27... Be4
{[%clk 0:01:09.7]} 28. Rc5 {[%clk 0:00:16.2]} 28... Qd7 {[%clk 0:01:09]} 29. Rd1
{[%clk 0:00:09.4]} 29... b6 {[%clk 0:01:02.9]} 30. Rc4 {[%clk 0:00:04.7]} 30...
c5 {[%clk 0:01:02.3]} 0-1

[Event "Late-Titled-Tuesday-Blitz-March-12-2024"]
[Site "Chess.com"]
[Date "2024.03.12"]
[Round "2"]
[White "shimastream"]
[Black "Willhaven3"]
[Result "1-0"]
[WhiteElo "2971"]
[BlackElo "2650"]
[TimeControl "180+1"]
[EndTime "14:16:26 PDT"]
[Termination "shimastream won by resignation"]

1. b3 {[%clk 0:03:00.9]} 1... f5 {[%clk 0:02:59.5]} 2. Bb2 {[%clk 0:02:59.9]}
2... e6 {[%clk 0:02:59.9]} 3. f4 {[%clk 0:02:58.2]} 3... Nf6 {[%clk 0:03:00]} 4.
Nf3 {[%clk 0:02:58.1]} 4... Be7 {[%clk 0:03:00.5]} 5. e3 {[%clk 0:02:56.2]} 5...
O-O {[%clk 0:03:00.8]} 6. Be2 {[%clk 0:02:55.9]} 6... d6 {[%clk 0:03:01.2]} 7.
O-O {[%clk 0:02:56.3]} 7... Nc6 {[%clk 0:03:01.6]} 8. c4 {[%clk 0:02:55.6]} 8...
Ne4 {[%clk 0:03:01.9]} 9. d3 {[%clk 0:02:55]} 9... Bf6 {[%clk 0:03:02.3]} 10.
Qc2 {[%clk 0:02:54.9]} 10... Bxb2 {[%clk 0:03:00.9]} 11. Qxb2 {[%clk 0:02:55.8]}
11... Qf6 {[%clk 0:02:58.7]} 12. Qxf6 {[%clk 0:02:53.2]} 12... Nxf6 {[%clk
0:02:58.5]} 13. h3 {[%clk 0:02:40.5]} 13... Bd7 {[%clk 0:02:58]} 14. Nc3 {[%clk
0:02:40.1]} 14... a6 {[%clk 0:02:53.9]} 15. a3 {[%clk 0:02:37.7]} 15... e5
{[%clk 0:02:53.8]} 16. b4 {[%clk 0:02:36]} 16... Rfe8 {[%clk 0:02:42.5]} 17. Kf2
{[%clk 0:02:33.4]} 17... e4 {[%clk 0:02:37.2]} 18. dxe4 {[%clk 0:02:33.6]} 18...
Nxe4+ {[%clk 0:02:37.8]} 19. Nxe4 {[%clk 0:02:33.7]} 19... Rxe4 {[%clk
0:02:38.7]} 20. Bd3 {[%clk 0:02:33.8]} 20... Re7 {[%clk 0:02:38.9]} 21. Rac1
{[%clk 0:02:27.2]} 21... Rae8 {[%clk 0:02:38.4]} 22. Rfe1 {[%clk 0:02:27.9]}
22... g6 {[%clk 0:02:35.8]} 23. b5 {[%clk 0:02:26.5]} 23... Nb8 {[%clk
0:02:29.6]} 24. Nd4 {[%clk 0:02:23]} 24... b6 {[%clk 0:02:28.6]} 25. Bf1 {[%clk
0:02:07.2]} 25... a5 {[%clk 0:02:28.8]} 26. g3 {[%clk 0:02:07.3]} 26... Be6
{[%clk 0:02:13.6]} 27. Bg2 {[%clk 0:02:06.8]} 27... Kg7 {[%clk 0:02:13.7]} 28.
e4 {[%clk 0:02:00.3]} 28... fxe4 {[%clk 0:02:12.3]} 29. Rxe4 {[%clk 0:01:59.9]}
29... Bf7 {[%clk 0:02:07.8]} 30. Rxe7 {[%clk 0:01:55.5]} 30... Rxe7 {[%clk
0:02:08.7]} 31. Bd5 {[%clk 0:01:55.4]} 31... Nd7 {[%clk 0:01:55.2]} 32. Nc6
{[%clk 0:01:53]} 32... Re8 {[%clk 0:01:52]} 33. Kf3 {[%clk 0:01:53.1]} 33... Nc5
{[%clk 0:01:52]} 34. Rd1 {[%clk 0:01:49.5]} 34... Bxd5+ {[%clk 0:01:51.4]} 35.
cxd5 {[%clk 0:01:50.4]} 35... Re4 {[%clk 0:01:46.7]} 36. Nd4 {[%clk 0:01:48.3]}
36... Kf6 {[%clk 0:01:37.1]} 37. g4 {[%clk 0:01:47.2]} 37... g5 {[%clk
0:01:27.1]} 38. fxg5+ {[%clk 0:01:44.7]} 38... Kxg5 {[%clk 0:01:28]} 39. Ne6+
{[%clk 0:01:44.3]} 39... Rxe6 {[%clk 0:01:18.8]} 40. dxe6 {[%clk 0:01:44.3]}
40... Nxe6 {[%clk 0:01:19.7]} 41. Rd5+ {[%clk 0:01:37.5]} 41... Kf6 {[%clk
0:01:19.3]} 42. h4 {[%clk 0:01:38]} 42... Nc5 {[%clk 0:01:09.7]} 43. Rf5+ {[%clk
0:01:34.9]} 43... Kg6 {[%clk 0:01:08.3]} 44. h5+ {[%clk 0:01:34.8]} 44... Kg7
{[%clk 0:01:07.7]} 45. g5 {[%clk 0:01:34.4]} 45... Nd7 {[%clk 0:01:08]} 46. Kf4
{[%clk 0:01:31.6]} 46... Nc5 {[%clk 0:01:08]} 47. h6+ {[%clk 0:01:30.3]} 47...
Kg8 {[%clk 0:01:05.1]} 48. Kg4 {[%clk 0:01:26.1]} 48... Nd3 {[%clk 0:00:45.5]}
49. Rf1 {[%clk 0:01:23.5]} 49... Ne5+ {[%clk 0:00:35.6]} 50. Kf5 {[%clk
0:01:23.3]} 50... Kf7 {[%clk 0:00:36]} 51. Rc1 {[%clk 0:01:22.6]} 51... Kf8
{[%clk 0:00:21.6]} 52. Rxc7 {[%clk 0:01:21.6]} 1-0

[Event "Late-Titled-Tuesday-Blitz-March-12-2024"]
[Site "Chess.com"]
[Date "2024.03.12"]
[Round "2"]
[White "Sina_Movahed"]
[Black "Korchmar_Vasiliy"]
[Result "1-0"]
[WhiteElo "3047"]
[BlackElo "2690"]
[TimeControl "180+1"]
[EndTime "14:16:34 PDT"]
[Termination "Sina_Movahed won on time"]

1. Nf3 {[%clk 0:03:00.9]} 1... d5 {[%clk 0:03:00]} 2. c4 {[%clk 0:03:00.8]} 2...
c6 {[%clk 0:02:59.8]} 3. g3 {[%clk 0:03:00.7]} 3... g6 {[%clk 0:02:59.7]} 4. Bg2
{[%clk 0:02:59.2]} 4... Bg7 {[%clk 0:03:00.2]} 5. O-O {[%clk 0:02:59.4]} 5... e5
{[%clk 0:03:00.8]} 6. d3 {[%clk 0:02:58.2]} 6... Ne7 {[%clk 0:03:00.7]} 7. Nc3
{[%clk 0:02:57]} 7... O-O {[%clk 0:03:00.5]} 8. cxd5 {[%clk 0:02:55.2]} 8...
cxd5 {[%clk 0:03:01.4]} 9. Bg5 {[%clk 0:02:55.3]} 9... f6 {[%clk 0:03:01.7]} 10.
Bd2 {[%clk 0:02:55]} 10... Nbc6 {[%clk 0:03:02]} 11. a3 {[%clk 0:02:51.8]} 11...
Be6 {[%clk 0:03:02.1]} 12. b4 {[%clk 0:02:51.7]} 12... Qd7 {[%clk 0:02:59.2]}
13. Re1 {[%clk 0:02:50.5]} 13... Kh8 {[%clk 0:02:57.2]} 14. Rc1 {[%clk
0:02:50.2]} 14... g5 {[%clk 0:02:52.1]} 15. Na4 {[%clk 0:02:42.3]} 15... b6
{[%clk 0:02:52]} 16. b5 {[%clk 0:02:42.3]} 16... Nd8 {[%clk 0:02:48.8]} 17. Bb4
{[%clk 0:02:42.9]} 17... Nf7 {[%clk 0:02:38.7]} 18. Nc3 {[%clk 0:02:18.7]} 18...
Rfc8 {[%clk 0:02:36.1]} 19. Nd2 {[%clk 0:02:16.6]} 19... Rab8 {[%clk 0:02:27.7]}
20. Bxe7 {[%clk 0:02:13.1]} 20... Qxe7 {[%clk 0:02:27.9]} 21. Nxd5 {[%clk
0:02:11.3]} 21... Qxa3 {[%clk 0:02:28.1]} 22. Nc4 {[%clk 0:02:10.7]} 22... Qc5
{[%clk 0:02:03.4]} 23. Nc3 {[%clk 0:01:51.6]} 23... Bxc4 {[%clk 0:01:46.3]} 24.
dxc4 {[%clk 0:01:51.5]} 24... Qxc4 {[%clk 0:01:32.5]} 25. Bd5 {[%clk 0:01:50.7]}
25... Qc7 {[%clk 0:01:32.6]} 26. Be6 {[%clk 0:01:38.5]} 26... Rd8 {[%clk
0:01:30.6]} 27. Nd5 {[%clk 0:01:38.1]} 27... Qb7 {[%clk 0:01:25.5]} 28. Qb3
{[%clk 0:01:37.5]} 28... Nd6 {[%clk 0:01:09.9]} 29. Rc7 {[%clk 0:01:36.8]} 29...
Qa8 {[%clk 0:01:10.5]} 30. Rec1 {[%clk 0:01:26.5]} 30... Ne4 {[%clk 0:01:06.3]}
31. Qf3 {[%clk 0:01:22.2]} 31... Nc5 {[%clk 0:00:35.1]} 32. R1xc5 {[%clk
0:01:12.4]} 32... bxc5 {[%clk 0:00:35.1]} 33. Rxg7 {[%clk 0:01:13.1]} 33... Rf8
{[%clk 0:00:04.9]} 34. Rd7 {[%clk 0:01:08.4]} 34... Rb7 {[%clk 0:00:04.3]} 35.
Nc7 {[%clk 0:00:58.5]} 35... Qb8 {[%clk 0:00:02]} 36. Qh5 {[%clk 0:00:54]} 1-0

[Event "Late-Titled-Tuesday-Blitz-March-12-2024"]
[Site "Chess.com"]
[Date "2024.03.12"]
[Round "2"]
[White "sergiochess83"]
[Black "grunbergmihai"]
[Result "1-0"]
[WhiteElo "2890"]
[BlackElo "2500"]
[TimeControl "180+1"]
[EndTime "14:16:34 PDT"]
[Termination "sergiochess83 won by resignation"]

1. d4 {[%clk 0:03:00.9]} 1... Nf6 {[%clk 0:02:59.3]} 2. c4 {[%clk 0:03:00.5]}
2... g6 {[%clk 0:02:59.5]} 3. f3 {[%clk 0:03:00.5]} 3... c5 {[%clk 0:02:58.9]}
4. d5 {[%clk 0:03:00.2]} 4... d6 {[%clk 0:02:58.4]} 5. e4 {[%clk 0:03:00.7]}
5... Bg7 {[%clk 0:02:58.5]} 6. Nc3 {[%clk 0:03:01.1]} 6... a6 {[%clk 0:02:58.6]}
7. a4 {[%clk 0:02:59.5]} 7... O-O {[%clk 0:02:58.6]} 8. Bg5 {[%clk 0:02:59]}
8... e6 {[%clk 0:02:58]} 9. Bd3 {[%clk 0:02:58.8]} 9... exd5 {[%clk 0:02:58]}
10. cxd5 {[%clk 0:02:59.2]} 10... h6 {[%clk 0:02:57]} 11. Bf4 {[%clk 0:02:56.4]}
11... Nh5 {[%clk 0:02:53.9]} 12. Be3 {[%clk 0:02:55.9]} 12... Qh4+ {[%clk
0:02:48.4]} 13. g3 {[%clk 0:02:53.5]} 13... Qe7 {[%clk 0:02:42.9]} 14. Qd2
{[%clk 0:02:51.5]} 14... Kh7 {[%clk 0:02:39.3]} 15. g4 {[%clk 0:02:50]} 15...
Nf6 {[%clk 0:02:35.1]} 16. h4 {[%clk 0:02:50.3]} 16... Bxg4 {[%clk 0:02:16.5]}
17. fxg4 {[%clk 0:02:48.9]} 17... Nxg4 {[%clk 0:02:16.8]} 18. h5 {[%clk
0:02:46.6]} 18... Nxe3 {[%clk 0:02:10]} 19. Qxe3 {[%clk 0:02:46.4]} 19... g5
{[%clk 0:02:04.7]} 20. Nf3 {[%clk 0:01:55.7]} 20... Nd7 {[%clk 0:01:58.2]} 21.
e5+ {[%clk 0:01:16.4]} 21... Kh8 {[%clk 0:01:57.7]} 22. Qe4 {[%clk 0:01:14.3]}
22... f5 {[%clk 0:01:52]} 23. exf6 {[%clk 0:01:12.7]} 23... Qxe4+ {[%clk
0:01:50.6]} 24. Nxe4 {[%clk 0:01:04.6]} 24... Nxf6 {[%clk 0:01:50.7]} 25. Nxf6
{[%clk 0:00:51.8]} 25... Bxf6 {[%clk 0:01:44.7]} 26. O-O {[%clk 0:00:51.2]}
26... Rae8 {[%clk 0:01:26.8]} 27. Bg6 {[%clk 0:00:35.3]} 27... Re2 {[%clk
0:01:19.1]} 28. Rae1 {[%clk 0:00:34.6]} 28... Rxb2 {[%clk 0:01:12.5]} 29. Rb1
{[%clk 0:00:19.2]} 29... c4 {[%clk 0:01:08.4]} 30. Rxb2 {[%clk 0:00:12.5]} 30...
Bxb2 {[%clk 0:01:08.2]} 31. a5 {[%clk 0:00:08.8]} 31... g4 {[%clk 0:01:02.8]}
32. Nd2 {[%clk 0:00:08.7]} 32... Rxf1+ {[%clk 0:00:54.8]} 33. Kxf1 {[%clk
0:00:09.6]} 33... c3 {[%clk 0:00:49.7]} 34. Nc4 {[%clk 0:00:09.7]} 34... Ba3
{[%clk 0:00:44.5]} 35. Nxa3 {[%clk 0:00:08.7]} 1-0

[Event "Late-Titled-Tuesday-Blitz-March-12-2024"]
[Site "Chess.com"]
[Date "2024.03.12"]
[Round "2"]
[White "KSho99"]
[Black "ElDivis"]
[Result "1/2-1/2"]
[WhiteElo "2144"]
[BlackElo "2468"]
[TimeControl "180+1"]
[EndTime "14:16:35 PDT"]
[Termination "Game drawn by repetition"]

1. d4 {[%clk 0:02:59.3]} 1... Nf6 {[%clk 0:02:59.7]} 2. Bg5 {[%clk 0:02:58.3]}
2... Ne4 {[%clk 0:02:57.9]} 3. Bf4 {[%clk 0:02:55.9]} 3... c5 {[%clk 0:02:58.4]}
4. d5 {[%clk 0:02:51.9]} 4... Qb6 {[%clk 0:02:57.9]} 5. Qc1 {[%clk 0:02:40.7]}
5... e6 {[%clk 0:02:47.8]} 6. dxe6 {[%clk 0:02:23.5]} 6... dxe6 {[%clk
0:02:41.2]} 7. f3 {[%clk 0:02:13.7]} 7... Qa5+ {[%clk 0:02:24.3]} 8. c3 {[%clk
0:02:08.6]} 8... Nf6 {[%clk 0:02:24.5]} 9. e4 {[%clk 0:02:05.8]} 9... Nc6 {[%clk
0:02:23.8]} 10. Na3 {[%clk 0:02:01]} 10... a6 {[%clk 0:02:13.4]} 11. Nc4 {[%clk
0:01:50.7]} 11... Qd8 {[%clk 0:02:12.7]} 12. a4 {[%clk 0:01:46.7]} 12... Be7
{[%clk 0:02:10.4]} 13. Qc2 {[%clk 0:01:43.9]} 13... O-O {[%clk 0:02:09.8]} 14.
Rd1 {[%clk 0:01:43.3]} 14... Qe8 {[%clk 0:02:07.5]} 15. Nd6 {[%clk 0:01:36.6]}
15... Bxd6 {[%clk 0:02:07.2]} 16. Bxd6 {[%clk 0:01:36.4]} 16... Ne7 {[%clk
0:01:57.2]} 17. Bxc5 {[%clk 0:01:33.2]} 17... Nd7 {[%clk 0:01:57.5]} 18. Be3
{[%clk 0:01:18]} 18... f5 {[%clk 0:01:55.9]} 19. Bc4 {[%clk 0:01:04.9]} 19...
Ne5 {[%clk 0:01:55.3]} 20. Bb3 {[%clk 0:00:53.5]} 20... f4 {[%clk 0:01:55.7]}
21. Bd4 {[%clk 0:00:44.5]} 21... N7c6 {[%clk 0:01:55.7]} 22. Ne2 {[%clk
0:00:41.7]} 22... Rf6 {[%clk 0:01:55.1]} 23. O-O {[%clk 0:00:35.1]} 23... Qh5
{[%clk 0:01:43.8]} 24. h3 {[%clk 0:00:29.8]} 24... Qg5 {[%clk 0:01:41.8]} 25.
Kh1 {[%clk 0:00:27]} 25... Rg6 {[%clk 0:01:38.1]} 26. Nc1 {[%clk 0:00:17.5]}
26... Bd7 {[%clk 0:01:35.6]} 27. Bg1 {[%clk 0:00:17]} 27... Rf8 {[%clk
0:01:29.3]} 28. Qf2 {[%clk 0:00:16.5]} 28... Rh6 {[%clk 0:01:25.5]} 29. Bh2
{[%clk 0:00:16.1]} 29... Rff6 {[%clk 0:01:24.6]} 30. Ne2 {[%clk 0:00:15]} 30...
Kf8 {[%clk 0:01:18.9]} 31. Rd2 {[%clk 0:00:11.5]} 31... Nf7 {[%clk 0:01:14.5]}
32. Rxd7 {[%clk 0:00:10.5]} 32... e5 {[%clk 0:01:13.2]} 33. Rxf7+ {[%clk
0:00:09.1]} 33... Rxf7 {[%clk 0:01:13.3]} 34. Bxf7 {[%clk 0:00:09.4]} 34... Kxf7
{[%clk 0:01:14.2]} 35. Rd1 {[%clk 0:00:07.6]} 35... Re6 {[%clk 0:01:10.5]} 36.
Rd7+ {[%clk 0:00:07]} 36... Re7 {[%clk 0:01:10.9]} 37. Rxe7+ {[%clk 0:00:07]}
37... Qxe7 {[%clk 0:01:11.6]} 38. Bg1 {[%clk 0:00:06.4]} 38... Qd6 {[%clk
0:01:09.2]} 39. Qc5 {[%clk 0:00:03.1]} 39... Qd1 {[%clk 0:01:09.4]} 40. Qd5+
{[%clk 0:00:03.6]} 40... Qxd5 {[%clk 0:01:08.6]} 41. exd5 {[%clk 0:00:04.5]}
41... Ne7 {[%clk 0:01:09.4]} 42. c4 {[%clk 0:00:04.8]} 42... Nf5 {[%clk
0:01:10.1]} 43. Nc3 {[%clk 0:00:04.3]} 43... Ng3+ {[%clk 0:01:09.4]} 44. Kh2
{[%clk 0:00:04.5]} 44... Nf1+ {[%clk 0:01:10.3]} 45. Kh1 {[%clk 0:00:05]} 45...
Ng3+ {[%clk 0:01:11.2]} 46. Kh2 {[%clk 0:00:05.4]} 46... Nf1+ {[%clk 0:01:12.1]}
47. Kh1 {[%clk 0:00:05.9]} 47... Ng3+ {[%clk 0:01:09.1]} 1/2-1/2

[Event "Late-Titled-Tuesday-Blitz-March-12-2024"]
[Site "Chess.com"]
[Date "2024.03.12"]
[Round "2"]
[White "Bryanl106"]
[Black "ChristopherYoo"]
[Result "0-1"]
[WhiteElo "2658"]
[BlackElo "2988"]
[TimeControl "180+1"]
[EndTime "14:16:41 PDT"]
[Termination "ChristopherYoo won by resignation"]

1. e4 {[%clk 0:02:57.6]} 1... c5 {[%clk 0:02:56.1]} 2. Nf3 {[%clk 0:02:55.7]}
2... Nc6 {[%clk 0:02:53.7]} 3. d4 {[%clk 0:02:55.9]} 3... cxd4 {[%clk
0:02:53.2]} 4. Nxd4 {[%clk 0:02:56.8]} 4... Nf6 {[%clk 0:02:52.7]} 5. Nc3 {[%clk
0:02:56.8]} 5... e6 {[%clk 0:02:44.3]} 6. Ndb5 {[%clk 0:02:56.2]} 6... Bc5
{[%clk 0:02:40.5]} 7. Nd6+ {[%clk 0:02:55.1]} 7... Ke7 {[%clk 0:02:40.4]} 8. Bf4
{[%clk 0:02:55.4]} 8... e5 {[%clk 0:02:41]} 9. Nf5+ {[%clk 0:02:55.9]} 9... Kf8
{[%clk 0:02:41.7]} 10. Bg5 {[%clk 0:02:56.5]} 10... d6 {[%clk 0:02:42.2]} 11.
Ne3 {[%clk 0:02:57.1]} 11... Be6 {[%clk 0:02:30.8]} 12. Qd2 {[%clk 0:02:46.4]}
12... h6 {[%clk 0:02:22.5]} 13. Bxf6 {[%clk 0:02:45.8]} 13... Qxf6 {[%clk
0:02:23]} 14. Ned5 {[%clk 0:02:41.3]} 14... Qd8 {[%clk 0:02:22.6]} 15. Bc4
{[%clk 0:02:34.6]} 15... g6 {[%clk 0:02:20.7]} 16. O-O {[%clk 0:02:33]} 16...
Kg7 {[%clk 0:02:19.7]} 17. Kh1 {[%clk 0:02:32.7]} 17... a6 {[%clk 0:02:16.4]}
18. a4 {[%clk 0:02:30.8]} 18... Rc8 {[%clk 0:02:14.3]} 19. Ba2 {[%clk
0:02:21.7]} 19... Re8 {[%clk 0:01:39]} 20. f3 {[%clk 0:02:09.9]} 20... Qg5
{[%clk 0:01:31.2]} 21. Qe2 {[%clk 0:01:53.3]} 21... Nd4 {[%clk 0:01:15.2]} 22.
Qd3 {[%clk 0:01:51.4]} 22... h5 {[%clk 0:01:13.5]} 23. Ne2 {[%clk 0:01:34.7]}
23... h4 {[%clk 0:00:59.5]} 24. Nxd4 {[%clk 0:01:30.5]} 24... Bxd4 {[%clk
0:00:56.3]} 25. c3 {[%clk 0:01:30.5]} 25... Ba7 {[%clk 0:00:53.2]} 26. a5 {[%clk
0:01:20.1]} 26... h3 {[%clk 0:00:49.2]} 27. g3 {[%clk 0:01:20]} 27... f5 {[%clk
0:00:42.3]} 28. Nb4 {[%clk 0:01:14.6]} 28... Bxa2 {[%clk 0:00:39.5]} 29. Rxa2
{[%clk 0:01:15.5]} 29... Bc5 {[%clk 0:00:39.2]} 30. Nd5 {[%clk 0:01:15.5]} 30...
fxe4 {[%clk 0:00:35.8]} 31. fxe4 {[%clk 0:01:11.1]} 31... Rf8 {[%clk 0:00:33.8]}
32. Raa1 {[%clk 0:01:02.8]} 32... Qg4 {[%clk 0:00:30.7]} 33. b4 {[%clk
0:01:01.6]} 33... Ba7 {[%clk 0:00:22.9]} 34. Rae1 {[%clk 0:00:58]} 34... Rcd8
{[%clk 0:00:14.5]} 35. Ne7 {[%clk 0:00:44.6]} 35... Rd7 {[%clk 0:00:10.8]} 36.
Rxf8 {[%clk 0:00:40.8]} 36... Kxf8 {[%clk 0:00:10.3]} 37. Nd5 {[%clk 0:00:39.7]}
37... Rf7 {[%clk 0:00:09.6]} 38. Rf1 {[%clk 0:00:38.4]} 38... Qxe4+ {[%clk
0:00:08.8]} 0-1